Cogmind - Beta 15 @@@ ROGUE MODE // 2025.09.02 @ 09:51:06 Player: winnking222 Result: Destroyed by G-47 Trooper with Particle Gun Performance ------------- Evolutions (0) 0 Regions Visited (1) 200 Robots Destroyed (19) 95 Value Destroyed (425) 425 Prototype IDs (0) 0 Alien Tech Used (0) 0 Bonus (0) 0 TOTAL SCORE: 720 Bonus ------- None Cogmind --------- Core Integrity 0/250 Matter 228/300 Energy 125/125 System Corruption 2% Temperature Cool (22) Movement Rolling (95) Ox1 Location -10/Materials Parts ------- > --- POWER (1) -------- Light Ion Engine > --- PROPULSION (2) --- Wheel Wheel > --- UTILITY (2) ------ Large Storage Unit Seismic Detector > --- WEAPON (2) ------- Assault Rifle Assault Rifle > --- INVENTORY (15) --- Ion Engine Wheel Compact Wheel High-capacity Storage Unit High-capacity Matter Pod (200) Assault Rifle Light Assault Rifle Peak State ------------ > --- POWER ------------ Light Ion Engine > --- PROPULSION ------- Light Treads Light Treads > --- UTILITY ---------- Large Storage Unit Seismic Detector > --- WEAPON ----------- Light Assault Rifle Light Assault Rifle > --- INVENTORY -------- Ion Engine Wheel Wheel Wheel Compact Wheel High-capacity Storage Unit High-capacity Matter Pod Assault Rifle Assault Rifle Assault Rifle [Rating: 8] Favorites ----------- Power Light Ion Engine Engine Light Ion Engine Propulsion Light Treads Treads Light Treads Wheel Wheel Utility Seismic Detector Device Seismic Detector Storage Small Storage Unit Weapon Light Assault Rifle Ballistic Gun Light Assault Rifle Build | -11 -10 ------- Run | Yrd Mat Slots Evolved . | . . Power . | . . Propulsion . | . . Utility . | . . Weapon . | . . Parts Attached 15 | 7 8 Power 2 | 1 1 Engine 2 | 1 1 Core . | . . Reactor . | . . Propulsion 4 | 2 2 Treads 2 | 2 . Leg . | . . Wheel 2 | . 2 Hover . | . . Flight . | . . Utility 4 | 2 2 Device 2 | 1 1 Storage 2 | 1 1 Processor . | . . Hackware . | . . Protection . | . . Artifact . | . . Weapon 5 | 2 3 Energy Gun . | . . Energy Cannon . | . . Ballistic Gun 5 | 2 3 Ballistic Cannon . | . . Launcher . | . . Special Weapon . | . . Impact Weapon . | . . Slashing Weapon . | . . Piercing Weapon . | . . Special Melee Weapon . | . . Unidentified Prototypes . | . . Parts Lost 5 | . 5 Power 1 | . 1 Propulsion 2 | . 2 Utility 1 | . 1 Weapon 1 | . 1 Highest Loss Streak 3 | . 3 To Critical Strikes . | . . Average Backups 6 | 3 6 Power 1 | . 1 Propulsion 2 | 1 3 Utility 1 | . 1 Weapon . | . . Tool/Special . | . . Unused Backups 6 | . 6 Power 1 | . 1 Propulsion 2 | . 2 Utility 2 | . 2 Weapon 1 | . 1 Tool/Special . | . . Average Slot Usage (%) 96 | . 96 Engine 13 | . 13 Treads 27 | . 27 Device 11 | . 11 Storage 14 | . 14 Ballistic Gun 28 | . 28 Peak Build Rating 8 | 7 8 Average Rating 6 | 5 6 On Entrance 3 | . 7 Naked Turns . | . . Heaviest Build 30 | 12 30 Greatest Support 40 | 40 40 Greatest Overweight (x) 1 | . 1 Average Overweight (x) . | . . Largest Inventory Capacity 15 | 8 15 Average Capacity 11 | 7 12 Most Carried 10 | 5 10 Average Carried 6 | 3 6 Final Capacity 15 | 8 15 Final Carried 7 | 4 7 Class Distribution -------------------- 100% | Mutant Dominant Class ---------------- Mutant | -10/Materials Resources | -11 -10 ----------- Run | Yrd Mat Matter Collected 676 | 341 335 Remotely . | . . Salvage Created 570 | 125 445 Parts 35 | 14 21 Haulers Intercepted . | . . Recyclers Shooed . | . . Parts Field Recycled . | . . Retrieved Matter . | . . Parts Self-Destructed . | . . Prevented . | . . Kills | -11 -10 ------- Run | Yrd Mat Combat Hostiles Destroyed 13 | . 13 Guns 13 | . 13 Classes Destroyed 3 | 1 2 Tunneler 6 | 6 . Swarmer 3 | . 3 Grunt 10 | . 10 Best Kill Streak 5 | 2 5 Combat Bots Only 5 | . 5 Max Kills in Single Turn 2 | 1 2 Gunslinging . | . . Exploded . | . . Melee . | . . Uniques/NPCs Destroyed . | . . Combat | -11 -10 -------- Run | Yrd Mat Hostile Shots Fired 115 | . 115 Missed 30 | . 30 Hits 85 | . 85 Projectile 85 | . 85 Critical Strikes 1 | . 1 Damage Taken 1003 | . 1003 Core 257 | . 257 Absorbed by Shields . | . . Core Remaining (%) 100 | 100 . Volleys Fired 64 | 19 45 Largest 2 | 2 2 Hottest 40 | 40 40 Shots Fired 128 | 38 90 Gun 128 | 38 90 Cannon . | . . Launcher . | . . Special . | . . Kinetic 128 | 38 90 Thermal . | . . Explosive . | . . Electromagnetic . | . . Robot Hit Streak 9 | 5 9 Robot Miss Streak 5 | 3 5 Penetration Max . | . . Secondary Targets 5 | . 5 Max Gunslinging Chain 1 | . 1 Shots Hit Robots 76 | 19 57 Core Hits 33 | 8 25 Critical Kills . | . . Critical Parts Destroyed . | . . Critical Strikes . | . . Melee Attacks . | . . Impact . | . . Slashing . | . . Piercing . | . . Sneak Attacks . | . . Combat Hostiles . | . . Follow-up Attacks . | . . Damage Inflicted 795 | 212 583 Guns 794 | 212 582 Cannons . | . . Explosions . | . . Melee . | . . Ramming 1 | . 1 Kinetic 794 | 212 582 Thermal . | . . Explosive . | . . Electromagnetic . | . . Impact . | . . Slashing . | . . Piercing . | . . Highest Corruption 2 | . 2 Average Corruption 2 | . 2 Corruption Purged . | . . Corruption Blocked . | . . Effects 4 | . 4 Message Errors 1 | . 1 Heat Flow Errors 1 | . 1 Misfires 1 | . 1 Weapon Failures 1 | . 1 Overload Shots . | . . Overflow Damage . | . . Projectiles . | . . Explosions . | . . Melee . | . . Knockbacks . | . . Impact . | . . Kinetic . | . . Secondary . | . . Self-Inflicted Damage . | . . Shots . | . . Rammed 2 | . 2 Targets Rammed 2 | . 2 Kicked . | . . Crushed . | . . Highest Temperature 143 | . 143 Average Temperature 17 | . 17 Received Heat Transfer 519 | . 519 Siege Activations . | . . Martial Activations . | . . Shielding Activations . | . . Robots Disrupted . | . . Combat Hostiles . | . . Robots Corrupted . | . . Combat Hostiles . | . . Parts Fried . | . . Impact Corruptions . | . . Robots Melted . | . . Combat Hostiles . | . . Parts Melted . | . . Heat Transferred . | . . Parts Sabotaged . | . . Parts Stolen . | . . Parts Stripped . | . . Power Chain Reactions . | . . Alert | -11 -10 ------- Run | Yrd Mat Maximum Alert Level . | . . Low Security (%) 100 | 100 100 Level 1 . | . . Level 2 . | . . Level 3 . | . . Level 4 . | . . Level 5 . | . . High Security . | . . Max Security . | . . Peak Influence 160 | 5 160 Initial 3 | . 3 Average 45 | 1 56 Influence Increases 330 | 30 300 Destroy 0b10 Robot/C 260 | . 260 Destroy 0b10 Robot/NC 30 | 30 . Destroy Leader 40 | . 40 Influence Decreases 330 | 25 305 Entered New Map 2 | . 2 Time Decay 284 | 25 259 Lost Part 44 | . 44 Squads Dispatched 3 | . 3 Investigation 2 | . 2 Extermination . | . . Reinforcement 1 | . 1 Assault . | . . Garrison . | . . Intercept . | . . Searches Triggered . | . . Construction Impeded . | . . Haulers Reinforced . | . . Active Scanning Responses . | . . Cargo Convoy Interrupts . | . . Stealth | -11 -10 --------- Run | Yrd Mat Distress Signals 2 | . 2 Communications Jammed . | . . Distress Signals . | . . Times Spotted 23 | . 23 Peak Tracking Total 7 | . 7 Tactical Retreats . | . . Traps | -11 -10 ------- Run | Yrd Mat Traps Triggered 2 | . 2 Indirectly . | . . Trap Hack Attempts . | . . Triggered . | . . Disarmed . | . . Reprogrammed . | . . Reused . | . . Traps Extracted . | . . Installed . | . . Triggered . | . . Machines | -11 -10 ---------- Run | Yrd Mat Machines Disabled . | . . Max in Single Turn . | . . Machines Repaired . | . . Machines Dismantled . | . . Machines Sabotaged . | . . Overloaded Fab Kills . | . . Hacking | -11 -10 --------- Run | Yrd Mat Machines Accessed 5 | . 5 Terminals 5 | . 5 Fabricators . | . . Repair Stations . | . . Recycling Units . | . . Scanalyzers . | . . Garrison Access . | . . Total Hacks 15 | . 15 Successful 8 | . 8 Failed 7 | . 7 Catastrophic 1 | . 1 Database Lockouts . | . . Manual 13 | . 13 Terminals 15 | . 15 Fabricators . | . . Repair Stations . | . . Recycling Units . | . . Scanalyzers . | . . Garrison Access . | . . Terminal Hacks 1 | . 1 Zone Layout 1 | . 1 Fabricator Hacks . | . . Repair Station Hacks . | . . Recycling Unit Hacks . | . . Scanalyzer . | . . Garrison Access Hacks . | . . Unauthorized Hacks 7 | . 7 Terminals 7 | . 7 Botnet 3 | . 3 Skim 4 | . 4 Fabricators . | . . Repair Stations . | . . Recycling Units . | . . Scanalyzers . | . . Garrison Access . | . . Data Cores Recovered . | . . Used . | . . Hacking Detections 5 | . 5 Full Trace Events 3 | . 3 Feedback Events . | . . Feedback Blocked . | . . Robot Schematics Acquired . | . . Robots Built . | . . Authchips . | . . Time . | . . Total Robot Build Rating . | . . Part Schematics Acquired . | . . Parts Built . | . . Authchips . | . . Time . | . . Total Part Build Rating . | . . Parts Repaired . | . . Time . | . . Parts Recycled . | . . Recycled Matter . | . . Retrieved Matter . | . . Retrieved Components . | . . Parts Scanalyzed . | . . Part Schematics Acquired . | . . Parts Damaged . | . . Bothacking | -11 -10 ------------ Run | Yrd Mat Used RIF Installer . | . . Robots Hacked . | . . Non-combat . | . . Combat . | . . Robot Hacks Applied . | . . Relay Couplers Released . | . . Fabnet Peak Effective % . | . . Robots Rewired . | . . Allies Hacked . | . . Hacks Repelled . | . . Allies | -11 -10 -------- Run | Yrd Mat Total Allies . | . . Largest Group . | . . Highest-Rated Group . | . . Highest-Rated Ally . | . . Total Orders . | . . Ally Attacks . | . . Total Damage . | . . Kills . | . . Allies Corrupted . | . . Allies Melted . | . . Intel | -11 -10 ------- Run | Yrd Mat Active Infowar (turns) 711 | 3 708 Seismic 711 | 3 708 Robot Analysis Total . | . . Derelict Logs Recovered . | . . Drone Launches . | . . Drone Recoveries . | . . Exploration | -11 -10 ------------- Run | Yrd Mat Turns Passed 1072 | 218 854 Spaces Moved 531 | 99 432 Core 9 | 9 . Treads 519 | 90 429 Legs . | . . Wheels 3 | . 3 Hover . | . . Flight . | . . Fastest Speed 50 | 50 95 Average Speed 157 | 150 159 Slowest Speed 160 | 160 160 Overloaded Moves . | . . Propulsion Burnouts . | . . Robots Hopped . | . . Potential Cave-ins . | . . Cave-ins Triggered . | . . Exploration Rate (%) 42 | 4 81 Regions Visited 1 Branch Regions . Pre-discovered Areas . | . . Known Exits Taken . | . . Unknown Exits Taken 1 | 1 . Scrap Searched . | . . Spaces Dug . | . . Terrain Destroyed . | . . Melee . | . . Projectile . | . . AOE . | . . Terrain Rammed . | . . Walls Destroyed . | . . Machines Disabled . | . . Actions | -11 -10 --------- Run | Yrd Mat Total 650 | 134 516 Wait 18 | . 18 Move 530 | 98 432 Hop . | . . Pick Up 19 | 10 9 Fast Attach 2 | 1 1 Attach 11 | 6 5 Detach . | . . Swap 2 | . 2 Drop 2 | . 2 Fire 64 | 19 45 Melee . | . . Ram . | . . Kick . | . . Crush 2 | . 2 Escape Stasis . | . . Rewire . | . . Trap . | . . Miscellaneous . | . . Route ------- -11/Scrapyard -10/Materials (discovered 5 exits: [*Mat x3] / [*Min x2]) History --------- Turn | Location | Event 11 | -11/Scrapyard | Discovered new exit (range 14) 219 | -11/Scrapyard | Entered Materials 313 | -10/Materials | Build established: Mutant 499 | -10/Materials | Core integrity fell below 50% 522 | -10/Materials | Discovered new exit (range 8) 528 | -10/Materials | Lost 3 parts (1p1u1w) 683 | -10/Materials | Discovered new exit (range 13) 799 | -10/Materials | Discovered new exit (range 13) 805 | -10/Materials | Discovered new exit (range 11) 917 | -10/Materials | Discovered new exit (range 13) 1060 | -10/Materials | Core integrity fell below 20% 1073 | -10/Materials | Destroyed by G-47 Trooper with Particle Gun Last Messages --------------- 00799_ EXIT=FOUND 00800_ K-01 Serf cleans the Fusion Modulator. 00805_ EXIT=FOUND 00924_ Acquired Assault Rifle. 00941_ System corrupted: FCS attempts to trigger Lgt. Assault Rifle. 00941_ System corrupted: Lgt. Assault Rifle misfires. 00954_ Dropped Lgt. Assault Rifle. 00970_ System corrupted: Heat flow error (+161). 00973_ R-06 Scavenger collects Lgt. Assault Rifle. 01047_ G-34 Mercenary destroyed. 01050_ K-01 Serf collects debris. 01054_ R-06 Scavenger collects Aluminum Leg. 01055_ K-01 Serf collects debris. 01056_ System corrupted: Assault Rifle jammed. 01057_ Lgt. Treads destroyed. 01058_ R-06 Scavenger collects Ion Engine. 01059_ Lgt. Treads destroyed. 01060_ K-01 Serf collects debris. 01071_ Critical hit (Burn: +37). 01073_ K-01 Serf collects debris. Map ----- +----------------------------------------------------+ | | | | | | | | | | | | | | | | | | | | | | | | | | | | | | | | | | | | | | | | | | | ??????????????????????????########???????????? | | ??????????????????????????# #???????????? | | ??????????????????######### ############# | | ??????????????????# | | ????????????????### g@ T | | ????????????????# g### ### ############# | | ????????????????#k #?# #?# #???######### | | ????????????????# #?# #?########???# | | ????????????????# #?#+#????????????# < | | ????????????????# #????????????????# | | ????????????????# % #?????????######## | | ???????????????## #?????????# = # ##### | | ???????????????? +?????????# # #???? | | ???????????????## #?????????# " # #???? | | ???????????????#T ??????????# T # #???? | | ????????????????# ??????????# " # #???? | | ????????????????# ??????????#[ # # ??? | | ????????????????# ##############+### + "?? | | ????????????????# #???? | | ????????????????# #???? | | ????????????????# ! #??## | | ????????????????# #####+##### | | ????????????????# """ # # | | ????????????????# """ """ # # | | ????????????????# """ """ # # | | ????????????????# """ # # | | ????????????????# """ # # | | ????????????????# # # | | ????????????????# ########## # | +----------------------------------------------------+ Best States ------------- Heat Dissipation 25 Energy Generation 10 Energy Capacity 125 Matter Stores 300 Matter Capacity 300 Sight Range 16 Terrain Scan Density 10 Evasion (%) 50 Recoil Reduction 2 Item Schematics ----------------- None Robot Schematics ------------------ None Fabricated ------------ Nothing Repaired ---------- Nothing Alien Tech Used ----------------- None Achievements -------------- None Challenges ------------ None Game ------ Seed SuperquantumRainbowBasin Manual? 0 Play Time 00:09:50 Cumulative 161.9 hours Start 2025.09.02 @ 09:45:27 End 2025.09.02 @ 09:51:06 Sessions 1 Manual Loads 0 Difficulty Rogue Special Mode None Game No. 225 Rogue 225 Adventurer 0 Explorer 0 Win Type - Total 1 Types 1/0/0/0/0/0/0/0/0/0 Lore% 71 Gallery% 66 Achievement% 57 Wizard Run 0 Options --------- Layout 0 ASCII 0 Keyboard 0 Movement Mouse Keybinds 0 Fullscreen 1 Font 16/SmallcapsGlow Map View 75x55 Zoom Use 0% Tactical HUD 1 Map Filters NONE Filters NONE Steam 1 RUN: e1df2817-4488-45f4-94d1-a9819c4ba053